Cogmind - Beta 9.6 @@@ ROGUE MODE // 2020.09.01 @ 20:13:39 Player: Cracklepappy Result: Destroyed by as-89563 with Assembled Blade Performance ------------- Evolutions (0) 0 Regions Visited (2) 400 Robots Destroyed (27) 135 Value Destroyed (535) 535 Prototype IDs (3) 60 Alien Tech Used (0) 0 Bonus (0) 0 TOTAL SCORE: 1130 Bonus ------- None Cogmind --------- Core Integrity 0/250 Matter 293/300 Energy 100/100 System Corruption 0% Temperature Cool (0) Movement Treading (200) Ox2 Location -10/Mines Parts ------- > --- POWER (1) -------- (None) > --- PROPULSION (2) --- Light Treads > --- UTILITY (2) ------ Large Storage Unit High-capacity Storage Unit > --- WEAPON (2) ------- (None) > --- INVENTORY (18) --- Light Nuclear Core Wheel Wheel Compact Wheel Improved Heat Sink Small Storage Unit Small Storage Unit Large Storage Unit Large Battery (300) High-capacity Matter Pod (79) Medium Armor Plating Peak State ------------ > --- POWER ------------ Ion Engine > --- PROPULSION ------- Compact Wheel Compact Wheel > --- UTILITY ---------- Small Storage Unit High-capacity Storage Unit > --- WEAPON ----------- Assault Rifle Mini Grenade Launcher > --- INVENTORY -------- Light Treads Light Treads Wheel Small Storage Unit Large Battery Small Matter Pod Large Matter Pod Medium Armor Plating Assault Rifle Light Assault Rifle [Rating: 9] Favorites ----------- Power Ion Engine Engine Ion Engine Propulsion Compact Wheel Treads Light Treads Wheel Compact Wheel Utility Small Storage Unit Storage Small Storage Unit Weapon Assault Rifle Ballistic Gun Assault Rifle Launcher Mini Grenade Launcher Special Weapon Mining Laser Build | -11 -10 -10 ------- Run | Scr Mat Min Slots Evolved . | . . . Power . | . . . Propulsion . | . . . Utility . | . . . Weapon . | . . . Parts Attached 23 | 7 12 4 Power 2 | 1 1 . Engine 2 | 1 1 . Core . | . . . Reactor . | . . . Propulsion 6 | 2 2 2 Treads 2 | . . 2 Leg . | . . . Wheel 4 | 2 2 . Hover . | . . . Flight . | . . . Utility 4 | 2 2 . Device . | . . . Storage 4 | 2 2 . Processor . | . . . Hackware . | . . . Protection . | . . . Artifact . | . . . Weapon 11 | 2 7 2 Energy Gun . | . . . Energy Cannon . | . . . Ballistic Gun 7 | 2 4 1 Ballistic Cannon . | . . . Launcher 2 | . 2 . Special Weapon 2 | . 1 1 Impact Weapon . | . . . Slashing Weapon . | . . . Piercing Weapon . | . . . Special Melee Weapon . | . . . Unidentified Prototypes . | . . . Parts Lost 9 | . 5 4 Power 2 | . 1 1 Propulsion 2 | . 2 . Utility . | . . . Weapon 5 | . 2 3 Highest Loss Streak 4 | . 2 4 Average Slot Usage (%) 96 | . 98 87 Engine 12 | . 13 10 Treads 1 | . . 6 Wheel 25 | . 27 21 Storage 28 | . 28 28 Ballistic Gun 19 | . 25 . Launcher 3 | . 1 10 Special Weapon 2 | . . 9 Naked Turns . | . . . Heaviest Build 56 | 16 56 55 Greatest Support 40 | 32 32 40 Greatest Overweight (x) 4 | 1 4 2 Average Overweight (x) 1 | . . 1 Largest Inventory Capacity 18 | 8 18 18 Average Capacity 13 | 7 13 18 Most Carried 13 | 8 13 12 Average Carried 10 | 4 10 11 Final Capacity 18 | 8 18 18 Final Carried 12 | 8 12 11 Class Distribution -------------------- 100% | Mutant Dominant Class ---------------- Mutant | -10/Materials Mutant | -10/Mines Resources | -11 -10 -10 ----------- Run | Scr Mat Min Matter Collected 970 | 330 599 41 Remotely . | . . . Salvage Created 886 | 181 664 41 Parts 48 | 6 42 . Haulers Intercepted 1 | . 1 . Recyclers Shooed 1 | . 1 . Parts Field Recycled . | . . . Retrieved Matter . | . . . Parts Self-Destructed . | . . . Prevented . | . . . Kills | -11 -10 -10 ------- Run | Scr Mat Min Combat Hostiles Destroyed 12 | . 11 1 Melee 1 | . . 1 Guns 8 | . 8 . AOE 3 | . 3 . Classes Destroyed 9 | 3 6 . Worker 1 | 1 . . Builder 2 | . 2 . Tunneler 4 | 3 1 . Hauler 1 | . 1 . Recycler 4 | 1 3 . Operator 1 | . 1 . Watcher 2 | . 2 . Swarmer 3 | . 3 . Grunt 9 | . 8 1 Best Kill Streak 6 | 2 6 1 Combat Bots Only 3 | . 3 1 Max Kills in Single Turn 2 | 1 2 1 Gunslinging . | . . . Exploded 2 | . 2 . Melee 1 | . . 1 Uniques/NPCs Destroyed . | . . . Combat | -11 -10 -10 -------- Run | Scr Mat Min Damage Taken 999 | . 602 397 Core 251 | . 132 119 Absorbed by Shields . | . . . Core Remaining (%) 100 | 100 . . Volleys Fired 81 | 15 61 5 Largest 2 | 2 2 2 Hottest 100 | 40 100 100 Shots Fired 156 | 30 118 8 Gun 143 | 30 110 3 Cannon . | . . . Launcher 11 | . 7 4 Special 2 | . 1 1 Kinetic 143 | 30 110 3 Thermal 2 | . 1 1 Explosive 11 | . 7 4 Electromagnetic . | . . . Robot Hit Streak 12 | 12 8 3 Robot Miss Streak 8 | 2 8 2 Penetration Max . | . . . Secondary Targets 1 | . 1 . Max Gunslinging Chain 1 | . 1 . Shots Hit Robots 96 | 20 72 4 Core Hits 53 | 8 38 7 Critical Hits . | . . . Critical Kills . | . . . Critical Parts Destroyed . | . . . Melee Attacks . | . . . Impact . | . . . Slashing . | . . . Piercing . | . . . Sneak Attacks . | . . . Combat Hostiles . | . . . Follow-up Attacks . | . . . Damage Inflicted 1608 | 205 1189 214 Guns 987 | 205 767 15 Cannons . | . . . Explosions 591 | . 417 174 Melee . | . . . Ramming 30 | . 5 25 Kinetic 987 | 205 767 15 Thermal . | . . . Explosive 555 | . 381 174 Electromagnetic 36 | . 36 . Impact . | . . . Slashing . | . . . Piercing . | . . . Highest Corruption . | . . . Average Corruption . | . . . Corruption Purged . | . . . Overload Shots . | . . . Overflow Damage 1 | . . 1 Projectiles . | . . . Explosions 1 | . . 1 Melee . | . . . Knockbacks . | . . . Impact . | . . . Kinetic . | . . . Secondary . | . . . Self-Inflicted Damage 131 | . 29 102 Shots 4 | . 1 3 Rammed 9 | . 1 8 Targets Rammed 9 | . 1 8 Kicked . | . . . Crushed . | . . . Highest Temperature 29 | . 20 29 Average Temperature 7 | . 5 12 Received Heat Transfer 441 | . 309 132 Siege Activations . | . . . Robots Corrupted . | . . . Combat Hostiles . | . . . Parts Fried . | . . . Impact Corruptions . | . . . Robots Melted . | . . . Combat Hostiles . | . . . Parts Melted . | . . . Heat Transferred . | . . . Parts Sabotaged . | . . . Parts Stolen . | . . . Parts Stripped . | . . . Power Chain Reactions . | . . . Missiles Intercepted . | . . . Alert | -11 -10 -10 ------- Run | Scr Mat Min Peak Influence 222 | 25 222 121 Average Influence 104 | 10 126 94 Maximum Alert Level 1 | . 1 . Low Security (%) 93 | 100 89 100 Level 1 6 | . 10 . Level 2 . | . . . Level 3 . | . . . Level 4 . | . . . Level 5 . | . . . High Security . | . . . Max Security . | . . . Squads Dispatched 4 | . 4 . Investigation 2 | . 2 . Extermination . | . . . Reinforcement 2 | . 2 . Assault . | . . . Garrison . | . . . Intercept . | . . . Construction Impeded . | . . . Haulers Reinforced . | . . . Stealth | -11 -10 -10 --------- Run | Scr Mat Min Distress Signals 4 | . 1 3 Communications Jammed . | . . . Distress Signals . | . . . Times Spotted 24 | . 21 3 Peak Tracking Total 4 | . 4 2 Tactical Retreats 1 | . . 1 Traps | -11 -10 -10 ------- Run | Scr Mat Min Traps Triggered 2 | . 2 . Indirectly . | . . . Trap Hack Attempts . | . . . Triggered . | . . . Disarmed . | . . . Reprogrammed . | . . . Reused . | . . . Traps Extracted . | . . . Installed . | . . . Triggered . | . . . Machines | -11 -10 -10 ---------- Run | Scr Mat Min Machines Disabled 6 | . 4 2 Max in Single Turn 2 | . 2 1 Machines Sabotaged . | . . . Garrisons Compromised . | . . . Overloaded Fab Kills . | . . . Fab Network Shutdowns . | . . . Hacking | -11 -10 -10 --------- Run | Scr Mat Min Machines Accessed 5 | . 5 . Terminals 5 | . 5 . Fabricators . | . . . Repair Stations . | . . . Recycling Units . | . . . Scanalyzers . | . . . Garrison Access . | . . . Total Hacks 12 | . 12 . Successful 4 | . 4 . Failed 8 | . 8 . Catastrophic 2 | . 2 . Database Lockouts . | . . . Manual 4 | . 4 . Terminals 12 | . 12 . Fabricators . | . . . Repair Stations . | . . . Recycling Units . | . . . Scanalyzers . | . . . Garrison Access . | . . . Terminal Hacks 4 | . 4 . Part Schematic 1 | . 1 . Prototype ID Bank 1 | . 1 . Locate Traps 1 | . 1 . Zone Layout 1 | . 1 . Fabricator Hacks . | . . . Repair Station Hacks . | . . . Recycling Unit Hacks . | . . . Scanalyzer . | . . . Garrison Access Hacks . | . . . Unauthorized Hacks . | . . . Terminals . | . . . Fabricators . | . . . Repair Stations . | . . . Recycling Units . | . . . Scanalyzers . | . . . Garrison Access . | . . . Data Cores Recovered 1 | . 1 . Used 1 | . 1 . Hacking Detections 5 | . 5 . Full Trace Events . | . . . Feedback Events . | . . . Feedback Blocked . | . . . Robot Schematics Acquired . | . . . Robots Built . | . . . Matter . | . . . Time . | . . . Total Robot Build Rating . | . . . Part Schematics Acquired 1 | . 1 . Parts Built . | . . . Matter . | . . . Time . | . . . Total Part Build Rating . | . . . Parts Repaired . | . . . Time . | . . . Parts Recycled . | . . . Recycled Matter . | . . . Retrieved Matter . | . . . Retrieved Components . | . . . Parts Scanalyzed . | . . . Part Schematics Acquired . | . . . Parts Damaged . | . . . Bothacking | -11 -10 -10 ------------ Run | Scr Mat Min Used RIF Installer . | . . . Robots Hacked . | . . . Non-combat . | . . . Combat . | . . . Robot Hacks Applied . | . . . Relay Couplers Released . | . . . Robots Rewired . | . . . Allies Hacked . | . . . Hacks Repelled . | . . . Allies | -11 -10 -10 -------- Run | Scr Mat Min Total Allies . | . . . Largest Group . | . . . Highest-Rated Group . | . . . Highest-Rated Ally . | . . . Total Orders . | . . . Ally Attacks . | . . . Total Damage . | . . . Kills . | . . . Allies Corrupted . | . . . Allies Melted . | . . . Intel | -11 -10 -10 ------- Run | Scr Mat Min Robot Analysis Total . | . . . Derelict Logs Recovered . | . . . Drone Launches . | . . . Drone Recoveries . | . . . Exploration | -11 -10 -10 ------------- Run | Scr Mat Min Turns Passed 1205 | 157 797 251 Spaces Moved 816 | 98 536 182 Core 4 | 4 . . Treads 23 | . . 23 Legs . | . . . Wheels 789 | 94 536 159 Hover . | . . . Flight . | . . . Fastest Speed 50 | 50 100 100 Average Speed 105 | 98 102 118 Slowest Speed 180 | 100 120 180 Overloaded Moves . | . . . Propulsion Burnouts . | . . . Robots Hopped . | . . . Cave-ins Triggered . | . . . Exploration Rate (%) 45 | 6 87 42 Regions Visited 2 Branch Regions 1 Pre-discovered Areas . | . . . Known Exits Taken . | . . . Unknown Exits Taken 2 | 1 1 . Scrap Searched . | . . . Spaces Dug 1 | . 1 . Terrain Destroyed 73 | . 42 31 Melee . | . . . Projectile 1 | . 1 . AOE 72 | . 41 31 Actions | -11 -10 -10 --------- Run | Scr Mat Min Total 991 | 128 663 200 Wait 39 | . 38 1 Move 814 | 97 535 182 Hop . | . . . Pick Up 20 | 9 11 . Fast Attach 7 | 6 1 . Attach 6 | 1 4 1 Detach . | . . . Swap 10 | . 7 3 Drop 5 | . 5 . Fire 81 | 15 61 5 Melee . | . . . Ram 1 | . 1 . Kick . | . . . Crush 8 | . . 8 Escape Stasis . | . . . Rewire . | . . . Trap . | . . . Miscellaneous . | . . . Route ------- -11/Scrapyard -10/Materials (discovered 3 exits: [*Mat x2] / [*Min]) -10/Mines History --------- Turn | Location | Event 26 | -11/Scrapyard | Discovered new exit (range 15) 158 | -11/Scrapyard | Entered Materials 322 | -10/Materials | Build established: Mutant 592 | -10/Materials | Discovered new exit (range 15) 606 | -10/Materials | Discovered new exit (range 15) 801 | -10/Materials | Discovered new exit (range 11) 897 | -10/Materials | Core integrity fell below 50% 955 | -10/Materials | Entered Mines 966 | -10/Mines | Assembled infested the area 971 | -10/Mines | Assisted by a Guerilla fighting off Assembled 1142 | -10/Mines | Core integrity fell below 20% 1178 | -10/Mines | Lost 4 parts (1p3w) 1206 | -10/Mines | Destroyed by as-89563 with Assembled Blade Last Messages --------------- 01158_ U-05 Engineer builds a Wall. 01158_ Slammed into G-47 Trooper. 01159_ U-05 Engineer lays Concrete. 01160_ Slammed into G-47 Trooper. 01160_ G-47 Trooper destroyed. 01160_ U-05 Engineer builds a Wall. 01161_ Acquired 41 matter. 01164_ U-05 Engineer lays Concrete. 01173_ U-05 Engineer builds a Wall. 01174_ U-05 Engineer lays Concrete. 01177_ U-05 Engineer builds a Wall. 01181_ U-05 Engineer lays Concrete. 01183_ U-05 Engineer builds a Wall. 01185_ U-05 Engineer lays Concrete. 01186_ U-05 Engineer builds a Wall. 01195_ U-05 Engineer lays Concrete. 01198_ K-01 Serf collects debris. 01203_ Slammed into as-89563. 01203_ Lgt. Treads severed. 01205_ Slammed into as-89563. Map ----- +----------------------------------------------------+ | ??????????????????????????????????????????????? | | ??????????????????????????????????????????????? | | ??????????????????????????????????????????????? | | ??????????????????????????????????????????????? | | ??????????????????????????????????????????????? | | ??????????????????????????????????????????????? | | ??????????????????????????????????????????????? | | ??????????????????????????????????????????????? | | ??????????????????????????????????????????????? | | ??????????????????????????????????????????????? | | ??????????????????????????????????????????????? | | ??????????????????????????????????????????????? | | ??????????????????????????????????????????????? | | ??????????????????????????????????????????????? | | ??????????????????????????????????????????????? | | ??????????????????????????????????????????????? | | ??????????????????????????????????????????????? | | ??????????????????????????????????????????????? | | ??????????????????????????????????????????????? | | ??????????????????????###?????????????????????? | | ??????????????????????# ?????????????????????? | | ??????????????????????# #?????????????????????? | | ??????????????????????# #?????????????????????? | | ????????????##????????# #?????????????????????? | | ????????????? #####??##=####??????????????????? | | ???????####### # #?##@ ##?????????????????? | | ???????# ### a ##????????????????? | | ???????# ## ##???????????????? | | ???????# " #### ######??????????? | | ???????# "" ##?????????? | | ???????# "" "" #?????????? | | ???????# ### "" ### #?####????? | | ???????# # ##?## #### ????? | | ???????####### # k ###????# ##?? ????? | | ?????????????### ## #???????###??? ???? | | ???????????????####### #####?????????# ????# | | ???????############### #?????????# ????# | | ???????# ### #????????## #????# | | ???????# #?# #???????## #????# | | ???????# ######### #####?# #??????## ##???# | | ???????# ##????# #?????# ######## #???# | | ???????# ##???# #?????# ##??# | | ???????# #???# #?????#### ###### #### | | ???????## #??# #????????# #????# | | ????????## #??# #????????# #???## ## | | ?????????# ##?## #????????# ##### #### | | ?????????## ##?## ##???????# ##?## | | ???????????###?## ##??????#### #??## | | ????????????#### ##????????# """ #???## | | ???????????## ##???????## """ #????? | +----------------------------------------------------+ Best States ------------- Heat Dissipation 25 Energy Generation 10 Energy Capacity 250 Matter Stores 300 Matter Capacity 300 Sight Range 16 Terrain Scan Density 10 Evasion (%) 40 Recoil Reduction 2 Item Schematics ----------------- Hcp. Storage Unit | -10/Materials | Hacked Robot Schematics ------------------ None Fabricated ------------ Nothing Alien Tech Used ----------------- None Achievements -------------- None Challenges ------------ None Game ------ Seed PropulsionCooledSuperbattery Manual? 0 Play Time 00:11:27 Cumulative 170.2 hours Start 2020.09.01 @ 20:03:23 End 2020.09.01 @ 20:13:39 Sessions 1 Manual Loads 0 Difficulty Rogue Special Mode None Game No. 197 Rogue 197 Adventurer 0 Explorer 0 Win Type - Total 2 Types 2/0/0/0/0/0/0 Lore% 62 Gallery% 73 Achievement% 54 Wizard Run 0 Options --------- ASCII 0 Keyboard 0 Movement Numpad Keybinds 0 Fullscreen 2 Font 24/Smallcaps Map View 76x50 Tactical HUD 1 Map Filters NONE Filters NONE Steam 1 RUN: 2b71f366-dafd-49da-9d50-762864f02297